{"text_format":"1","workbook":"xlsx","n_sheets":2,"sheets":["Déplacements","Données"],"not_rendered":{"charts":0,"images":0,"macros":1,"external_links":0,"defined_names":3,"comments":0,"pivot_tables":0},"unopened":[],"bounds":{"document_bytes":16777216,"sheet_cells":100000,"rows_first":2000,"rows_last":500,"rows_between":2000,"halvings":0,"cell_chars":16384,"cell_head_chars":4096},"cells_cut":0,"cells_raw":0,"read":"whole","date_system":"1900"}

{"sheet":"Déplacements","index":0,"n_rows":100,"n_cols":9,"rows_kept":100,"cut":false,"hidden":false,"merged":[]}
[]
[]
[]
[]
[]
["Date","Nom","Lieu","Transport","Total Transport"," Nb Repas","Total repas","Nb Nuit","Total nuit"]
[null,null,"Caouënnec-Lanvézéac","Voiture",{"$f":"IF(D7=\"Voiture\",INDEX(Tarif_KM,MATCH(C7,Ville[],0)))","v":{"$error":"#REF!"}},null,{"$f":"F7*Repas","v":0},null,{"$f":"H7*Nuit","v":0}]
[null,null,null,null,null,null,{"$f":"F8*Repas","v":0},null,{"$f":"H8*Nuit","v":0}]
[null,null,null,null,null,null,{"$f":"F9*Repas","v":0},null,0]
[null,null,null,null,null,null,{"$f":"F10*Repas","v":0},null,0]
[null,null,null,null,null,null,{"$f":"F11*Repas","v":0},null,0]
[null,null,null,null,null,null,{"$f":"F12*Repas","v":0},null,0]
[null,null,null,null,null,null,{"$f":"F13*Repas","v":0},null,0]
[null,null,null,null,null,null,{"$f":"F14*Repas","v":0},null,0]
[null,null,null,null,null,null,{"$f":"F15*Repas","v":0},null,0]
[null,null,null,null,null,null,{"$f":"F16*Repas","v":0},null,0]
[null,null,null,null,null,null,{"$f":"F17*Repas","v":0},null,0]
[null,null,null,null,null,null,{"$f":"F18*Repas","v":0},null,0]
[null,null,null,null,null,null,{"$f":"F19*Repas","v":0},null,0]
[null,null,null,null,null,null,{"$f":"F20*Repas","v":0},null,0]
[null,null,null,null,null,null,{"$f":"F21*Repas","v":0},null,0]
[null,null,null,null,null,null,{"$f":"F22*Repas","v":0},null,0]
[null,null,null,null,null,null,{"$f":"F23*Repas","v":0},null,0]
[null,null,null,null,null,null,{"$f":"F24*Repas","v":0},null,0]
[null,null,null,null,null,null,{"$f":"F25*Repas","v":0},null,0]
[null,null,null,null,null,null,{"$f":"F26*Repas","v":0},null,0]
[null,null,null,null,null,null,{"$f":"F27*Repas","v":0},null,0]
[null,null,null,null,null,null,{"$f":"F28*Repas","v":0},null,0]
[null,null,null,null,null,null,{"$f":"F29*Repas","v":0},null,0]
[null,null,null,null,null,null,{"$f":"F30*Repas","v":0},null,0]
[null,null,null,null,null,null,{"$f":"F31*Repas","v":0},null,0]
[null,null,null,null,null,null,{"$f":"F32*Repas","v":0},null,0]
[null,null,null,null,null,null,{"$f":"F33*Repas","v":0},null,0]
[null,null,null,null,null,null,{"$f":"F34*Repas","v":0},null,0]
[null,null,null,null,null,null,{"$f":"F35*Repas","v":0},null,0]
[null,null,null,null,null,null,{"$f":"F36*Repas","v":0},null,0]
[null,null,null,null,null,null,{"$f":"F37*Repas","v":0},null,0]
[null,null,null,null,null,null,{"$f":"F38*Repas","v":0},null,0]
[null,null,null,null,null,null,{"$f":"F39*Repas","v":0},null,{"$f":"H39*Nuit","v":0}]
[null,null,null,null,null,null,{"$f":"F40*Repas","v":0},null,0]
[null,null,null,null,null,null,{"$f":"F41*Repas","v":0},null,0]
[null,null,null,null,null,null,{"$f":"F42*Repas","v":0},null,0]
[null,null,null,null,null,null,{"$f":"F43*Repas","v":0},null,0]
[null,null,null,null,null,null,{"$f":"F44*Repas","v":0},null,0]
[null,null,null,null,null,null,{"$f":"F45*Repas","v":0},null,0]
[null,null,null,null,null,null,{"$f":"F46*Repas","v":0},null,0]
[null,null,null,null,null,null,{"$f":"F47*Repas","v":0},null,0]
[null,null,null,null,null,null,{"$f":"F48*Repas","v":0},null,0]
[null,null,null,null,null,null,{"$f":"F49*Repas","v":0},null,0]
[null,null,null,null,null,null,{"$f":"F50*Repas","v":0},null,0]
[null,null,null,null,null,null,{"$f":"F51*Repas","v":0},null,0]
[null,null,null,null,null,null,{"$f":"F52*Repas","v":0},null,0]
[null,null,null,null,null,null,{"$f":"F53*Repas","v":0},null,0]
[null,null,null,null,null,null,{"$f":"F54*Repas","v":0},null,0]
[null,null,null,null,null,null,{"$f":"F55*Repas","v":0},null,0]
[null,null,null,null,null,null,{"$f":"F56*Repas","v":0},null,0]
[null,null,null,null,null,null,{"$f":"F57*Repas","v":0},null,0]
[null,null,null,null,null,null,{"$f":"F58*Repas","v":0},null,0]
[null,null,null,null,null,null,{"$f":"F59*Repas","v":0},null,0]
[null,null,null,null,null,null,{"$f":"F60*Repas","v":0},null,0]
[null,null,null,null,null,null,{"$f":"F61*Repas","v":0},null,0]
[null,null,null,null,null,null,{"$f":"F62*Repas","v":0},null,0]
[null,null,null,null,null,null,{"$f":"F63*Repas","v":0},null,0]
[null,null,null,null,null,null,{"$f":"F64*Repas","v":0},null,0]
[null,null,null,null,null,null,{"$f":"F65*Repas","v":0},null,0]
[null,null,null,null,null,null,{"$f":"F66*Repas","v":0},null,0]
[null,null,null,null,null,null,{"$f":"F67*Repas","v":0},null,0]
[null,null,null,null,null,null,{"$f":"F68*Repas","v":0},null,0]
[null,null,null,null,null,null,{"$f":"F69*Repas","v":0},null,0]
[null,null,null,null,null,null,{"$f":"F70*Repas","v":0},null,0]
[null,null,null,null,null,null,{"$f":"F71*Repas","v":0},null,{"$f":"H71*Nuit","v":0}]
[null,null,null,null,null,null,{"$f":"F72*Repas","v":0},null,0]
[null,null,null,null,null,null,{"$f":"F73*Repas","v":0},null,0]
[null,null,null,null,null,null,{"$f":"F74*Repas","v":0},null,0]
[null,null,null,null,null,null,{"$f":"F75*Repas","v":0},null,0]
[null,null,null,null,null,null,{"$f":"F76*Repas","v":0},null,0]
[null,null,null,null,null,null,{"$f":"F77*Repas","v":0},null,0]
[null,null,null,null,null,null,{"$f":"F78*Repas","v":0},null,0]
[null,null,null,null,null,null,{"$f":"F79*Repas","v":0},null,0]
[null,null,null,null,null,null,{"$f":"F80*Repas","v":0},null,0]
[null,null,null,null,null,null,{"$f":"F81*Repas","v":0},null,0]
[null,null,null,null,null,null,{"$f":"F82*Repas","v":0},null,0]
[null,null,null,null,null,null,{"$f":"F83*Repas","v":0},null,0]
[null,null,null,null,null,null,{"$f":"F84*Repas","v":0},null,0]
[null,null,null,null,null,null,{"$f":"F85*Repas","v":0},null,0]
[null,null,null,null,null,null,{"$f":"F86*Repas","v":0},null,0]
[null,null,null,null,null,null,{"$f":"F87*Repas","v":0},null,0]
[null,null,null,null,null,null,{"$f":"F88*Repas","v":0},null,0]
[null,null,null,null,null,null,{"$f":"F89*Repas","v":0},null,0]
[null,null,null,null,null,null,{"$f":"F90*Repas","v":0},null,0]
[null,null,null,null,null,null,{"$f":"F91*Repas","v":0},null,0]
[null,null,null,null,null,null,{"$f":"F92*Repas","v":0},null,0]
[null,null,null,null,null,null,{"$f":"F93*Repas","v":0},null,0]
[null,null,null,null,null,null,{"$f":"F94*Repas","v":0},null,0]
[null,null,null,null,null,null,{"$f":"F95*Repas","v":0},null,0]
[null,null,null,null,null,null,{"$f":"F96*Repas","v":0},null,0]
[null,null,null,null,null,null,{"$f":"F97*Repas","v":0},null,0]
[null,null,null,null,null,null,{"$f":"F98*Repas","v":0},null,0]
[null,null,null,null,null,null,{"$f":"F99*Repas","v":0},null,0]
[null,null,null,null,null,null,{"$f":"F100*Repas","v":0},null,0]

{"sheet":"Données","index":1,"n_rows":34,"n_cols":9,"rows_kept":34,"cut":false,"hidden":false,"merged":[]}
["Nom","Ville","Distance","Tarif","Transport","Nbrepas","Tarif KM","Repas","Nuit"]
["?","Annoeullin",1494,{"$f":"C2*Tarif_KM","v":268.92},"Autre",1,0.18,18,50]
["tyty","Bordeaux",1300,234,"Avion",2]
["michel","Brest",0,0,"Car",3]
["Albert","Caouënnec-Lanvézéac",250,45,"Covoiturage",4]
["joel","Carnac Ménec Erdeven",334,60.12,"Local",5]
["jules","Caudan",280,50.4,"Train",6]
["toto","Chantepie",500,90,"Voiture"]
["tata","Coutaines",785,141.29999999999998]
["pierre","Cuck",1310,235.79999999999998]
["René","Dinan",406,73.08]
["Gaelle","Douarnenez",186,33.479999999999997]
["Michelle","Lannion",214,38.519999999999996]
["Michel","Le Havre",975,175.5]
[null,"Le Rheu",472,84.96]
[null,"Lorient",284,51.12]
[null,"Macon ",1860,334.8]
[null,"Maen Roch Autrain",510,91.8]
[null,"Morangis",1160.8,208.94399999999999]
[null,"Morlaix",112,20.16]
[null,"Nantes",600,108]
[null,"Pont Scroff",264,47.519999999999996]
[null,"Reims",1421,255.78]
[null,"Ronchin",1513,272.33999999999997]
[null,"Roscoff",120,21.599999999999998]
[null,"Rouen",1013.4,182.41199999999998]
[null,"Saint Maure des Fossés",1188,213.84]
[null,"Saint_Brieuc",290,52.199999999999996]
[null,"Saint_Malo",491,88.38]
[null,"Senlis",1276,229.67999999999998]
[null,"Strasbourg",2144,385.91999999999996]
[null,"Thorigné Foullard",502,90.36]
[null,"Vannes",372,66.959999999999994]
[null,"Vernon_sur_Seche",506,91.08]